fUSD/lending_fUSD_20260527
["ID","MTS","AMOUNT","RATE_DAILY","PERIOD"]
[423119588,1779865841000,-484.76763572,0.00035392,2]
[423119586,1779865841000,-452.52893397,0.00035392,2]
[423119585,1779865841000,-578.28315025,0.00035392,2]
[423119611,1779865841000,-300.0,0.00035392,2]
[423119607,1779865841000,-460.02366071,0.00035392,2]
[423119610,1779865841000,-300.99795142,0.00035392,2]
[423119592,1779865841000,-300.0,0.00035392,2]
[423119617,1779865841000,-950.32029804,0.00035392,2]
[423119645,1779865841000,-300.0,0.00035392,2]
[423119646,1779865841000,-116.97966883,0.00035455,5]
[423119644,1779865841000,-19149.00572528,0.00035455,5]
[423119641,1779865841000,-300.0,0.00035392,2]
[423119643,1779865841000,-360.13155805,0.00035432,2]
[423119642,1779865841000,-300.99795142,0.00035392,2]
[423119640,1779865841000,-302.21937029,0.00035392,2]
[423119639,1779865841000,-727.07827244,0.00035392,2]
[423119636,1779865841000,-528.48327171,0.00035392,2]
[423119638,1779865841000,-894.65434383,0.00035392,2]
[423119637,1779865841000,-1068.40163352,0.00035392,2]
[423119635,1779865841000,-300.0,0.00035392,2]
[423119633,1779865841000,-300.0,0.00035392,2]
[423119634,1779865841000,-605.31118564,0.00035392,2]
[423119619,1779865841000,-1148.83589152,0.00035392,2]
[423119626,1779865841000,-300.0,0.00035392,2]
[423119613,1779865841000,-1263.96825586,0.00035392,2]
[423119621,1779865841000,-594.79850986,0.00035392,2]
[423119620,1779865841000,-310.02493426,0.00035392,2]
[423119622,1779865841000,-300.0,0.00035392,2]
[423119623,1779865841000,-464.48677942,0.00035392,2]
[423119625,1779865841000,-452.52893397,0.00035392,2]
[423119627,1779865841000,-484.76763572,0.00035392,2]
[423119629,1779865841000,-300.0,0.00035392,2]
[423119630,1779865841000,-1096.2926835,0.00035392,2]
[423119631,1779865841000,-300.0,0.00035392,2]
[423119628,1779865841000,-310.28230408,0.00035392,2]
[423119624,1779865841000,-578.28315025,0.00035392,2]
[423119632,1779865841000,-493.38669858,0.00035392,2]
[423119650,1779865843000,-304.0,0.00035382,10]
[423119649,1779865843000,-507.83620842,0.00035382,10]
[423119672,1779865846000,-509.0,0.00035382,10]
[423119673,1779865846000,-3764.33433238,0.00035382,10]
[423119674,1779865950000,526.0,0.00029,2]
[423119675,1779865963000,540.0,0.00026,2]
[423119677,1779866036000,7068.26,0.00024174,2]
[423119678,1779866037000,2391.75,0.00025786,2]
[423119679,1779866037000,4676.51,0.00025786,2]
[423119680,1779866155000,4240.95,0.00024174,2]
[423119682,1779866156000,3158.4,0.00025786,2]
[423119681,1779866156000,1082.55,0.00025786,2]
[423119684,1779866311000,2084.0,0.00028082,120]
[423119686,1779866323000,540.0,0.00026,2]
[423119687,1779866335000,2544.57,0.00024174,2]
[423119688,1779866336000,2544.57,0.00025786,2]
[423119690,1779866532000,4310.7887968,0.0002,2]
[423119692,1779866545000,10000.01,0.000107,2]
[423119693,1779866545000,7709.25294519,0.000107,2]
[423119691,1779866545000,10000.01,0.000107,2]
[423119695,1779866548000,10000.01,0.00026,10]
[423119694,1779866548000,2290.75705481,0.00026,10]
[423119697,1779866548000,5079.90046953,0.00026,10]
[423119696,1779866548000,10000.01,0.00026,10]
[423119700,1779866552000,676.03917321,9.04e-05,2]
[423119702,1779866591000,152.15,0.00017429,2]
[423119704,1779866592000,152.15,0.00022409,2]
[423119703,1779866592000,152.15,0.00019919,2]
[423119705,1779866592000,152.15,0.00024899,2]
[423119707,1779866683000,541.5002,0.00025082,2]
[423119708,1779866696000,1526.74,0.00024174,2]
[423119709,1779866705000,152.0,0.00018829,2]
[423119734,1779866795000,390.6511077,0.00028082,120]
[423119738,1779866828000,-191.28257441,0.00029666,2]
[423119737,1779866828000,-191.65153977,0.00029567,2]
[423119736,1779866828000,-250.0,0.00028364,2]
[423119735,1779866828000,-152.15,0.00027389,2]
[423119741,1779866953000,-468.69200373,0.00029666,2]
[423119742,1779866955000,-540.02542186,0.00029666,2]
[423119744,1779866955000,-126.30736814,0.00029667,30]
[423119743,1779866955000,-157.0,0.00029667,30]
[423119753,1779867029000,4480.0,0.00028082,120]
[423119758,1779867031000,-171.0,0.00029667,30]
[423119757,1779867031000,-162.0,0.00029667,30]
[423119760,1779867031000,-154.0,0.00029667,30]
[423119759,1779867031000,-154.0,0.00029667,30]
[423119762,1779867031000,-161.0,0.00029667,30]
[423119763,1779867031000,-164.0,0.00029667,30]
[423119764,1779867031000,-152.15,0.00029879,2]
[423119765,1779867031000,-151.0,0.00031115,7]
[423119775,1779867031000,-1442.38,0.00034457,2]
[423119768,1779867031000,-250.0,0.00032633,2]
[423119766,1779867031000,-152.15,0.00032369,2]
[423119761,1779867031000,-158.0,0.00029667,30]
[423119767,1779867031000,-400.0,0.00032632,2]
[423119774,1779867031000,-5000.0,0.00034039,2]
[423119780,1779867031000,-1047.56,0.00034633,120]
[423119777,1779867031000,-1125.3,0.0003449,2]
[423119778,1779867031000,-883.79,0.00034538,120]
[423119776,1779867031000,-433.0,0.0003449,10]
[423119779,1779867031000,-164.62,0.00034552,2]
[423119770,1779867031000,-111.35591586,0.00033433,30]
[423119771,1779867031000,-55.30408414,0.00033433,30]
[423119769,1779867031000,-250.0,0.00032634,2]
[423119773,1779867031000,-200.0,0.00034022,2]
[423119772,1779867031000,-152.0,0.00033501,3]
[423119847,1779867032000,-500.0,0.00035109,7]
[423119828,1779867032000,-500.0,0.00035109,7]
[423119810,1779867032000,-500.0,0.00035109,7]
[423119816,1779867032000,-500.0,0.00035109,7]
[423119812,1779867032000,-500.0,0.00035109,7]
[423119826,1779867032000,-500.0,0.00035109,7]
[423119824,1779867032000,-500.0,0.00035109,7]
[423119830,1779867032000,-603.64137041,0.00035109,7]
[423119832,1779867032000,-500.0,0.00035109,7]
[423119834,1779867032000,-500.0,0.00035109,7]
[423119841,1779867032000,-500.0,0.00035109,7]
[423119839,1779867032000,-500.0,0.00035109,7]
[423119845,1779867032000,-500.0,0.00035109,7]
[423119838,1779867032000,-500.0,0.00035109,7]
[423119844,1779867032000,-500.0,0.00035109,7]
[423119843,1779867032000,-500.0,0.00035109,7]
[423119846,1779867032000,-500.0,0.00035109,7]
[423119822,1779867032000,-500.0,0.00035109,7]
[423119836,1779867032000,-500.0,0.00035109,7]
[423119808,1779867032000,-500.0,0.00035109,7]
[423119801,1779867032000,-500.0,0.00035109,7]
[423119818,1779867032000,-500.0,0.00035109,7]
[423119786,1779867032000,-7946.91,0.00035099,10]
[423119782,1779867032000,-500.0,0.00034697,2]
[423119785,1779867032000,-333.0,0.00035074,2]
[423119781,1779867032000,-258.72,0.0003464,120]
[423119783,1779867032000,-152.15,0.00034859,2]
[423119784,1779867032000,-1428.41,0.00035006,2]
[423119787,1779867032000,-6622.43,0.00035099,10]
[423119789,1779867032000,-374.42162029,0.00035109,2]
[423119803,1779867032000,-500.0,0.00035109,7]
[423119791,1779867032000,-500.0,0.00035109,7]
[423119788,1779867032000,-5518.69,0.00035099,10]
[423119799,1779867032000,-500.0,0.00035109,7]
[423119790,1779867032000,-500.0,0.00035109,7]
[423119792,1779867032000,-500.0,0.00035109,7]
[423119793,1779867032000,-500.0,0.00035109,7]
[423119797,1779867032000,-500.0,0.00035109,7]
[423119805,1779867032000,-500.0,0.00035109,7]
[423119795,1779867032000,-500.0,0.00035109,7]
[423119807,1779867032000,-500.0,0.00035109,7]
[423119820,1779867032000,-500.0,0.00035109,7]
[423119840,1779867032000,-500.0,0.00035109,7]
[423119814,1779867032000,-500.0,0.00035109,7]
[423119848,1779867032000,-500.0,0.00035109,7]
[423119876,1779867032000,-404.47693278,0.00035109,7]
[423119872,1779867032000,-500.0,0.00035109,7]
[423119874,1779867032000,-252.98059353,0.00035109,7]
[423119875,1779867032000,-95.52306722,0.00035109,7]
[423119878,1779867032000,-490.48083472,0.00035109,7]
[423119877,1779867032000,-500.0,0.00035109,7]
[423119879,1779867032000,-9.51916528,0.00035109,7]
[423119881,1779867032000,-422.28759704,0.00035109,7]
[423119882,1779867032000,-500.0,0.00035109,7]
[423119883,1779867032000,-500.0,0.00035109,7]
[423119884,1779867032000,-500.0,0.00035109,7]
[423119886,1779867032000,-500.0,0.00035109,7]
[423119885,1779867032000,-500.0,0.00035109,7]
[423119887,1779867032000,-500.0,0.00035109,7]
[423119888,1779867032000,-500.0,0.00035109,7]
[423119890,1779867032000,-500.0,0.00035109,7]
[423119889,1779867032000,-500.0,0.00035109,7]
[423119891,1779867032000,-500.0,0.00035109,7]
[423119842,1779867032000,-500.0,0.00035109,7]
[423119871,1779867032000,-500.0,0.00035109,7]
[423119869,1779867032000,-500.0,0.00035109,7]
[423119880,1779867032000,-77.71240296,0.00035109,7]
[423119870,1779867032000,-500.0,0.00035109,7]
[423119850,1779867032000,-500.0,0.00035109,7]
[423119849,1779867032000,-500.0,0.00035109,7]
[423119873,1779867032000,-247.01940647,0.00035109,7]
[423119851,1779867032000,-500.0,0.00035109,7]
[423119854,1779867032000,-500.0,0.00035109,7]
[423119852,1779867032000,-500.0,0.00035109,7]
[423119853,1779867032000,-500.0,0.00035109,7]
[423119857,1779867032000,-500.0,0.00035109,7]
[423119856,1779867032000,-500.0,0.00035109,7]
[423119858,1779867032000,-262.45307787,0.00035109,7]
[423119855,1779867032000,-500.0,0.00035109,7]
[423119864,1779867032000,-420.29914911,0.00035109,7]
[423119866,1779867032000,-500.0,0.00035109,7]
[423119868,1779867032000,-500.0,0.00035109,7]
[423119861,1779867032000,-245.12914911,0.00035109,7]
[423119862,1779867032000,-500.0,0.00035109,7]
[423119859,1779867032000,-237.54692213,0.00035109,7]
[423119865,1779867032000,-500.0,0.00035109,7]
[423119863,1779867032000,-79.70085089,0.00035109,7]
[423119867,1779867032000,-500.0,0.00035109,7]
[423119860,1779867032000,-254.87085089,0.00035109,7]
[423119892,1779867033000,-110.71240296,0.00035109,7]
[423119899,1779867037000,-389.28759704,0.00035109,7]
[423119905,1779867037000,-500.0,0.00035109,7]
[423119898,1779867037000,-4598.91,0.00035099,10]
[423119904,1779867037000,-500.0,0.00035109,7]
[423119902,1779867037000,-500.0,0.00035109,7]
[423119901,1779867037000,-500.0,0.00035109,7]
[423119900,1779867037000,-500.0,0.00035109,7]
[423119903,1779867037000,-500.0,0.00035109,7]
[423119907,1779867037000,-500.0,0.00035109,7]
[423119906,1779867037000,-500.0,0.00035109,7]
[423119913,1779867038000,-500.0,0.00035109,7]
[423119912,1779867038000,-500.0,0.00035109,7]
[423119911,1779867038000,-446.66908064,0.00035109,7]
[423119909,1779867038000,-500.0,0.00035109,7]
[423119910,1779867038000,-500.0,0.00035109,7]
[423119908,1779867038000,-500.0,0.00035109,7]
[423119916,1779867038000,-258.0401911,0.0003511,2]
[423119920,1779867038000,-880.12725964,0.0003511,2]
[423119914,1779867038000,-500.0,0.00035109,7]
[423119922,1779867038000,-341.50517263,0.0003511,2]
[423119923,1779867038000,-4198.0,0.0003511,2]
[423119921,1779867038000,-1314.70254899,0.0003511,2]
[423119915,1779867038000,-264.57159568,0.00035109,7]
[423119918,1779867038000,-21619.62032033,0.0003511,2]
[423119919,1779867038000,-3216.5170958,0.0003511,2]
[423119917,1779867038000,-11229.17856554,0.0003511,2]
[423119967,1779867040000,-300.0,0.00035392,2]
[423119953,1779867040000,-865.6208675,0.00035392,2]
[423119958,1779867040000,-594.79850986,0.00035392,2]
[423119957,1779867040000,-310.02493426,0.00035392,2]
[423119968,1779867040000,-565.10477641,0.00035392,2]
[423119959,1779867040000,-464.48677942,0.00035392,2]
[423119960,1779867040000,-578.28315025,0.00035392,2]
[423119949,1779867040000,-300.0,0.00035392,2]
[423119962,1779867040000,-300.0,0.00035392,2]
[423119966,1779867040000,-1096.2926835,0.00035392,2]
[423119965,1779867040000,-300.0,0.00035392,2]
[423119961,1779867040000,-452.52893397,0.00035392,2]
[423119952,1779867040000,-527.62572404,0.00035392,2]
[423119964,1779867040000,-310.28230408,0.00035392,2]
[423119969,1779867040000,-307.08549401,0.00035392,2]
[423119971,1779867040000,-300.0,0.00035392,2]
[423119979,1779867040000,-727.07827244,0.00035392,2]
[423119972,1779867040000,-300.0,0.00035392,2]
[423119974,1779867040000,-300.0,0.00035392,2]
[423119970,1779867040000,-493.38669858,0.00035392,2]
[423119963,1779867040000,-484.76763572,0.00035392,2]
[423119947,1779867040000,-422.1212799,0.0003539,2]
[423119955,1779867040000,-300.09384644,0.00035392,2]
[423119954,1779867040000,-950.32029804,0.00035392,2]
[423119978,1779867040000,-894.65434383,0.00035392,2]
[423119930,1779867040000,-147243.69833707,0.0003511,2]
[423119932,1779867040000,-200.0,0.00035149,10]
[423119933,1779867040000,-1915.57,0.0003515,2]
[423119934,1779867040000,-511.969,0.00035206,41]
[423119937,1779867040000,-9999.99,0.0003521,2]
[423119943,1779867040000,-299.99,0.0003521,30]
[423119936,1779867040000,-494.89,0.0003521,2]
[423119935,1779867040000,-1000.0,0.00035209,2]
[423119948,1779867040000,-521.0,0.0003539,2]
[423119938,1779867040000,-22549.29,0.0003521,2]
[423119939,1779867040000,-1283.71,0.0003521,2]
[423119940,1779867040000,-9999.99,0.0003521,2]
[423119942,1779867040000,-499.99,0.0003521,2]
[423119941,1779867040000,-434.01,0.0003521,15]
[423119946,1779867040000,-150.0,0.00035384,7]
[423119956,1779867040000,-1148.83589152,0.00035392,2]
[423119945,1779867040000,-150.0,0.00035384,7]
[423119950,1779867040000,-1263.96825586,0.00035392,2]
[423119951,1779867040000,-344.45437934,0.00035392,2]
[423119944,1779867040000,-150.0,0.00035384,7]
[423119975,1779867040000,-300.0,0.00035392,2]
[423119931,1779867040000,-173.72,0.0003513,120]
[423119977,1779867040000,-1068.40163352,0.00035392,2]
[423120002,1779867040000,-300.0,0.00035392,2]
[423120005,1779867040000,-493.38669858,0.00035392,2]
[423120007,1779867040000,-605.31118564,0.00035392,2]
[423120009,1779867040000,-300.0,0.00035392,2]
[423120008,1779867040000,-300.0,0.00035392,2]
[423120006,1779867040000,-300.0,0.00035392,2]
[423120016,1779867040000,-201.93286098,0.00035454,5]
[423120018,1779867040000,-298.00835152,0.00035454,5]
[423120011,1779867040000,-174.61919141,0.00035454,5]
[423120017,1779867040000,-1377.42282658,0.00035454,5]
[423120013,1779867040000,-187.78006524,0.00035454,5]
[423120010,1779867040000,-1000.0,0.00035454,5]
[423120015,1779867040000,-194.72792766,0.00035454,5]
[423120012,1779867040000,-181.08010149,0.00035454,5]
[423120014,1779867040000,-419.74552907,0.00035454,5]
[423120019,1779867040000,-607.73253053,0.00035454,5]
[423120023,1779867040000,-166.68,0.00035632,2]
[423120022,1779867040000,-150.0,0.00035616,60]
[423120021,1779867040000,-209.49,0.00035513,2]
[423120020,1779867040000,-707.26835115,0.00035454,5]
[423120024,1779867040000,-22959.11673559,0.00035641,2]
[423120001,1779867040000,-1096.2926835,0.00035392,2]
[423119999,1779867040000,-310.28230408,0.00035392,2]
[423119973,1779867040000,-605.31118564,0.00035392,2]
[423120000,1779867040000,-300.0,0.00035392,2]
[423119976,1779867040000,-528.48327171,0.00035392,2]
[423119981,1779867040000,-300.0,0.00035392,2]
[423119998,1779867040000,-484.76763572,0.00035392,2]
[423119992,1779867040000,-310.02493426,0.00035392,2]
[423119982,1779867040000,-300.99795142,0.00035392,2]
[423119983,1779867040000,-300.0,0.00035392,2]
[423119984,1779867040000,-300.0,0.00035392,2]
[423119985,1779867040000,-1263.96825586,0.00035392,2]
[423119980,1779867040000,-302.21937029,0.00035392,2]
[423119988,1779867040000,-865.6208675,0.00035392,2]
[423119991,1779867040000,-1148.83589152,0.00035392,2]
[423119987,1779867040000,-527.62572404,0.00035392,2]
[423119990,1779867040000,-300.09384644,0.00035392,2]
[423120003,1779867040000,-449.17313882,0.00035392,2]
[423119996,1779867040000,-452.52893397,0.00035392,2]
[423119995,1779867040000,-578.28315025,0.00035392,2]
[423119997,1779867040000,-300.0,0.00035392,2]
[423120004,1779867040000,-300.0,0.00035392,2]
[423119993,1779867040000,-594.79850986,0.00035392,2]
[423119986,1779867040000,-344.45437934,0.00035392,2]
[423119989,1779867040000,-950.32029804,0.00035392,2]
[423119994,1779867040000,-464.48677942,0.00035392,2]
[423120041,1779867041000,-150.1,0.00036006,2]
[423120042,1779867041000,-729.76,0.00036007,10]
[423120049,1779867041000,-306.29,0.00036312,10]
[423120037,1779867041000,-3990.87594856,0.0003599,2]
[423120043,1779867041000,-1656.1,0.00036015,10]
[423120047,1779867041000,-1359.69776706,0.00036267,86]
[423120035,1779867041000,-644.04449751,0.00035882,2]
[423120027,1779867041000,-150.0,0.00035741,7]
[423120045,1779867041000,-150.0,0.00036098,7]
[423120040,1779867041000,-200.0,0.00036,120]
[423120034,1779867041000,-528.48327171,0.00035392,2]
[423120026,1779867041000,-343.53571441,0.00035641,2]
[423120028,1779867041000,-784.36550249,0.00035882,2]
[423120025,1779867041000,-5274.99995,0.00035641,2]
[423120044,1779867041000,-150.0,0.00036039,7]
[423120048,1779867041000,-7172.3579857,0.00036295,2]
[423120046,1779867041000,-449.14,0.00036114,10]
[423120050,1779867041000,-1002.94,0.00036357,10]
[423120051,1779867041000,-150.5247935,0.00036365,2]
[423120066,1779867041000,-5871.11157447,0.00036493,5]
[423120065,1779867041000,-500.0,0.00036492,15]
[423120064,1779867041000,-592.01264039,0.00036492,15]
[423120060,1779867041000,-500.0,0.00036492,15]
[423120063,1779867041000,-223.98605226,0.00036492,15]
[423120062,1779867041000,-375.49419295,0.00036492,15]
[423120061,1779867041000,-500.0,0.00036492,15]
[423120057,1779867041000,-151.0,0.00036424,7]
[423120058,1779867041000,-150.0,0.00036456,7]
[423120056,1779867041000,-1544.0,0.00036424,7]
[423120054,1779867041000,-25449.84445241,0.000364,30]
[423120055,1779867041000,-5929.10674815,0.000364,2]
[423120053,1779867041000,-426.15554759,0.000364,30]
[423120059,1779867041000,-209.49,0.00036473,2]
[423120052,1779867041000,-685.1,0.00036376,10]
[423120076,1779867045000,-764.40163352,0.00035392,2]
[423120077,1779867045000,-378.63419069,0.00035392,2]
[423120075,1779867045000,-304.0,0.00035392,2]
[423120081,1779867046000,-516.02015314,0.00035392,2]
[423120082,1779867046000,-86.41300688,0.00035392,2]
[423120083,1779867046000,-640.66526556,0.00035392,2]
[423120085,1779867046000,-6411.73453984,0.00036493,5]
[423120086,1779867046000,-1959.75024067,0.00036494,30]
[423120087,1779867046000,-1246.81121813,0.00036494,30]
[423120084,1779867046000,-3832.42,0.00036484,10]
[423120090,1779867054000,272.74,0.00024174,2]
[423120123,1779867791000,1376.0,0.00028,120]
[423120139,1779868016000,-540.0,0.00017104,2]
[423120138,1779868016000,-150.0,0.00016591,2]
[423120150,1779868146000,-218.19,0.00021273,2]
[423120148,1779868146000,-30282.16704878,0.00020356,2]
[423120147,1779868146000,-300.0,0.00020355,2]
[423120145,1779868146000,-225.694778,0.000201,2]
[423120142,1779868146000,-160.0,0.00018479,2]
[423120144,1779868146000,-632.62,0.00019805,2]
[423120143,1779868146000,-632.62,0.00018905,2]
[423120141,1779868146000,-632.62,0.00018004,2]
[423120140,1779868146000,-92.62,0.00017104,2]
[423120146,1779868146000,-419.147447,0.000202,2]
[423120149,1779868146000,-632.62,0.00020705,2]
[423120152,1779868146000,-420.0,0.00022156,2]
[423120153,1779868146000,-632.62,0.00022506,2]
[423120151,1779868146000,-632.62,0.00021605,2]
[423120163,1779868146000,-349.14811542,0.00024117,2]
[423120161,1779868146000,-500.0,0.00023947,30]
[423120159,1779868146000,-799.188,0.00023673,30]
[423120160,1779868146000,-500.0,0.00023947,30]
[423120162,1779868146000,-191.4554308,0.00024053,2]
[423120156,1779868146000,-632.62,0.00023406,2]
[423120158,1779868146000,-500.0,0.00023673,30]
[423120155,1779868146000,-250.0,0.0002296,2]
[423120154,1779868146000,-163.52,0.00022506,2]
[423120157,1779868146000,-500.0,0.00023673,30]
[423120164,1779868148000,-237.85188458,0.00024117,2]
[423120167,1779868148000,-2485.68773729,0.00024174,2]
[423120166,1779868148000,-1000.0,0.00024173,2]
[423120165,1779868148000,-1200.0,0.00024172,2]
[423120172,1779868156000,-500.0,0.00024495,30]
[423120168,1779868156000,-4960.38226271,0.00024174,2]
[423120169,1779868156000,-500.0,0.00024221,30]
[423120171,1779868156000,-632.62,0.00024306,2]
[423120170,1779868156000,-500.0,0.00024221,30]
[423120173,1779868156000,-500.0,0.00024495,30]
[423120175,1779868156000,-500.0,0.00024769,30]
[423120178,1779868156000,-500.0,0.00024769,30]
[423120177,1779868156000,-500.0,0.00024769,30]
[423120176,1779868156000,-500.0,0.00024769,30]
[423120179,1779868156000,-297.69549572,0.000248,2]
[423120180,1779868156000,-29733.32624157,0.00024893,2]
[423120174,1779868156000,-213.76,0.00024725,2]
[423120181,1779868162000,-9117.327002,0.00024893,2]
[423120185,1779868166000,-500.0,0.00025043,30]
[423120182,1779868166000,-16690.05595276,0.00024893,2]
[423120183,1779868166000,-500.0,0.00025043,30]
[423120184,1779868166000,-500.0,0.00025043,30]
[423120188,1779868166000,-500.0,0.00025317,30]
[423120186,1779868166000,-527.0,0.00025082,2]
[423120190,1779868166000,-500.0,0.00025317,30]
[423120189,1779868166000,-500.0,0.00025317,30]
[423120191,1779868166000,-1915.57,0.0002562,2]
[423120193,1779868166000,-1517.5505846,0.00025786,2]
[423120187,1779868166000,-632.62,0.00025206,2]
[423120192,1779868166000,-218.19,0.00025786,2]
[423120195,1779868170000,-632.62,0.00026106,2]
[423120196,1779868170000,-1583.10752198,0.00026161,2]
[423120194,1779868170000,-5928.5194154,0.00025786,2]
[423120203,1779868231000,-1129.96,0.00016307,2]
[423120201,1779868231000,-1129.96,0.00014754,2]
[423120202,1779868231000,-1129.96,0.00015531,2]
[423120244,1779868232000,-500.0,0.00026214,2]
[423120265,1779868232000,-500.0,0.00026214,2]
[423120243,1779868232000,-500.0,0.00026214,2]
[423120241,1779868232000,-500.0,0.00026214,2]
[423120235,1779868232000,-500.0,0.00026214,2]
[423120242,1779868232000,-500.0,0.00026214,2]
[423120236,1779868232000,-500.0,0.00026214,2]
[423120238,1779868232000,-500.0,0.00026214,2]
[423120245,1779868232000,-404.55884817,0.00026214,2]
[423120237,1779868232000,-500.0,0.00026214,2]
[423120240,1779868232000,-500.0,0.00026214,2]
[423120247,1779868232000,-95.44115183,0.00026214,2]
[423120255,1779868232000,-500.0,0.00026214,2]
[423120252,1779868232000,-500.0,0.00026214,2]
[423120249,1779868232000,-500.0,0.00026214,2]
[423120250,1779868232000,-500.0,0.00026214,2]
[423120253,1779868232000,-500.0,0.00026214,2]
[423120254,1779868232000,-500.0,0.00026214,2]
[423120267,1779868232000,-500.0,0.00026214,2]
[423120258,1779868232000,-500.0,0.00026214,2]
[423120266,1779868232000,-500.0,0.00026214,2]
[423120261,1779868232000,-500.0,0.00026214,2]
[423120268,1779868232000,-500.0,0.00026214,2]
[423120256,1779868232000,-500.0,0.00026214,2]
[423120232,1779868232000,-500.0,0.00026214,2]
[423120251,1779868232000,-500.0,0.00026214,2]
[423120233,1779868232000,-500.0,0.00026214,2]
[423120209,1779868232000,-1129.96,0.00020966,2]
[423120230,1779868232000,-500.0,0.00026214,2]
[423120205,1779868232000,-1129.96,0.0001786,2]
[423120204,1779868232000,-1129.96,0.00017084,2]
[423120206,1779868232000,-1129.96,0.00018637,2]
[423120208,1779868232000,-1129.96,0.0002019,2]
[423120207,1779868232000,-1129.96,0.00019413,2]
[423120210,1779868232000,-1129.96,0.00021743,2]
[423120214,1779868232000,-907.41109732,0.00024072,2]
[423120212,1779868232000,-732.37109732,0.00023296,2]
[423120211,1779868232000,-1129.96,0.00022519,2]
[423120213,1779868232000,-397.58890268,0.00023296,2]
[423120216,1779868232000,-197.09002495,0.000248,2]
[423120217,1779868232000,-1129.96,0.00024849,2]
[423120231,1779868232000,-500.0,0.00026214,2]
[423120215,1779868232000,-222.54890268,0.00024072,2]
[423120218,1779868232000,-197.09002495,0.00025,2]
[423120220,1779868232000,-200.0,0.00025348,2]
[423120221,1779868232000,-1129.96,0.00025625,2]
[423120224,1779868232000,-300.0,0.00026213,2]
[423120226,1779868232000,-1200.0,0.00026213,2]
[423120227,1779868232000,-500.0,0.00026214,2]
[423120225,1779868232000,-300.0,0.00026213,2]
[423120223,1779868232000,-3416.89247802,0.00026161,2]
[423120222,1779868232000,-152.0,0.00025758,2]
[423120229,1779868232000,-500.0,0.00026214,2]
[423120228,1779868232000,-500.0,0.00026214,2]
[423120239,1779868232000,-500.0,0.00026214,2]
[423120219,1779868232000,-518.0,0.00025082,2]
[423120264,1779868232000,-500.0,0.00026214,2]
[423120286,1779868232000,-500.0,0.00026214,2]
[423120270,1779868232000,-500.0,0.00026214,2]
[423120300,1779868232000,-500.0,0.00026214,2]
[423120301,1779868232000,-500.0,0.00026214,2]
[423120302,1779868232000,-500.0,0.00026214,2]
[423120305,1779868232000,-500.0,0.00026214,2]
[423120304,1779868232000,-500.0,0.00026214,2]
[423120306,1779868232000,-500.0,0.00026214,2]
[423120308,1779868232000,-500.0,0.00026214,2]
[423120307,1779868232000,-500.0,0.00026214,2]
[423120310,1779868232000,-500.0,0.00026214,2]
[423120309,1779868232000,-500.0,0.00026214,2]
[423120315,1779868232000,-450.0,0.00026214,2]
[423120313,1779868232000,-500.0,0.00026214,2]
[423120303,1779868232000,-500.0,0.00026214,2]
[423120312,1779868232000,-500.0,0.00026214,2]
[423120317,1779868232000,-500.0,0.00026214,2]
[423120316,1779868232000,-500.0,0.00026214,2]
[423120318,1779868232000,-500.0,0.00026214,2]
[423120320,1779868232000,-500.0,0.00026214,2]
[423120319,1779868232000,-500.0,0.00026214,2]